[Event "Early-Titled-Tuesday-Blitz-April-16-2024"]
[Site "Chess.com"]
[Date "2024.04.16"]
[Round "7"]
[White "artin10862"]
[Black "GeorgiosSouleidis"]
[Result "1-0"]
[WhiteElo "2934"]
[BlackElo "2657"]
[TimeControl "180+1"]
[EndTime "9:21:49 PDT"]
[Termination "artin10862 won on time"]

1. e4 {[%clk 0:03:00.9]} 1... c5 {[%clk 0:02:59.7]} 2. Nf3 {[%clk 0:03:00.6]}
2... e6 {[%clk 0:03:00.2]} 3. d4 {[%clk 0:02:58.8]} 3... cxd4 {[%clk 0:03:01.1]}
4. Nxd4 {[%clk 0:02:59.7]} 4... Nf6 {[%clk 0:03:01.6]} 5. Nc3 {[%clk 0:02:52.8]}
5... Nc6 {[%clk 0:03:01.8]} 6. Nxc6 {[%clk 0:02:43.2]} 6... bxc6 {[%clk
0:03:02.7]} 7. e5 {[%clk 0:02:43.7]} 7... Nd5 {[%clk 0:03:03.2]} 8. Ne4 {[%clk
0:02:44.4]} 8... Qc7 {[%clk 0:03:03.8]} 9. f4 {[%clk 0:02:44.2]} 9... Qb6 {[%clk
0:03:04.3]} 10. c4 {[%clk 0:02:43.6]} 10... Ne3 {[%clk 0:03:04.6]} 11. Qd3
{[%clk 0:02:41.2]} 11... Bb4+ {[%clk 0:03:04.9]} 12. Bd2 {[%clk 0:02:38.1]}
12... Ba6 {[%clk 0:03:04.9]} 13. b3 {[%clk 0:02:02]} 13... O-O {[%clk
0:03:02.8]} 14. Ng5 {[%clk 0:01:29.9]} 14... g6 {[%clk 0:02:32.7]} 15. Ne4
{[%clk 0:01:09.8]} 15... Nd5 {[%clk 0:02:16.2]} 16. O-O-O {[%clk 0:01:05.8]}
16... f5 {[%clk 0:01:48.9]} 17. exf6 {[%clk 0:00:43.1]} 17... Nxf6 {[%clk
0:01:45.7]} 18. h4 {[%clk 0:00:39.9]} 18... Bxd2+ {[%clk 0:01:26.9]} 19. Rxd2
{[%clk 0:00:36.1]} 19... d5 {[%clk 0:01:18]} 20. Ng5 {[%clk 0:00:28.4]} 20...
dxc4 {[%clk 0:00:55.9]} 21. Qc3 {[%clk 0:00:27.7]} 21... cxb3 {[%clk 0:00:49.3]}
22. Bxa6 {[%clk 0:00:27]} 22... Qxa6 {[%clk 0:00:44.2]} 23. Qxb3 {[%clk
0:00:23.7]} 23... Nd5 {[%clk 0:00:31.3]} 24. Re1 {[%clk 0:00:08.7]} 24... Rxf4
{[%clk 0:00:26.6]} 25. Nxe6 {[%clk 0:00:07.5]} 25... Qc4+ {[%clk 0:00:24]} 26.
Qxc4 {[%clk 0:00:02.7]} 26... Rxc4+ {[%clk 0:00:24.9]} 27. Kb2 {[%clk
0:00:03.5]} 27... Rb8+ {[%clk 0:00:24.7]} 28. Ka1 {[%clk 0:00:03.8]} 28... Rxh4
{[%clk 0:00:18.2]} 29. Rc1 {[%clk 0:00:04]} 29... Rb6 {[%clk 0:00:17]} 30. Ng5
{[%clk 0:00:03.9]} 30... h6 {[%clk 0:00:14.6]} 31. Nf3 {[%clk 0:00:04.1]} 31...
Rhb4 {[%clk 0:00:14.3]} 32. Rdc2 {[%clk 0:00:04.5]} 32... Ne7 {[%clk 0:00:13.9]}
33. Ne5 {[%clk 0:00:04.4]} 33... g5 {[%clk 0:00:11.7]} 34. Nd7 {[%clk 0:00:04]}
34... Rb7 {[%clk 0:00:10.4]} 35. Nc5 {[%clk 0:00:04.4]} 35... R7b5 {[%clk
0:00:10.6]} 36. Nd3 {[%clk 0:00:03.4]} 36... Rd4 {[%clk 0:00:10.1]} 37. Nc5
{[%clk 0:00:04]} 37... Kf7 {[%clk 0:00:08.7]} 38. Nb3 {[%clk 0:00:04.1]} 38...
Rd7 {[%clk 0:00:08.1]} 39. Rf2+ {[%clk 0:00:04.2]} 39... Kg6 {[%clk 0:00:08]}
40. Rfc2 {[%clk 0:00:05.1]} 40... Rd6 {[%clk 0:00:07.5]} 41. Nc5 {[%clk
0:00:05.5]} 41... a5 {[%clk 0:00:05.5]} 42. Ne4 {[%clk 0:00:05.8]} 42... Re6
{[%clk 0:00:05.8]} 43. Nc5 {[%clk 0:00:06.1]} 43... Rf6 {[%clk 0:00:05.6]} 44.
Ne4 {[%clk 0:00:06.4]} 44... Rf4 {[%clk 0:00:05.1]} 45. Nd2 {[%clk 0:00:06.4]}
45... Rf2 {[%clk 0:00:04.6]} 46. Re1 {[%clk 0:00:04.4]} 46... Nf5 {[%clk
0:00:03.8]} 47. Rxc6+ {[%clk 0:00:04.2]} 47... Kh5 {[%clk 0:00:03.9]} 48. Ne4
{[%clk 0:00:02.7]} 1-0

[Event "Early-Titled-Tuesday-Blitz-April-16-2024"]
[Site "Chess.com"]
[Date "2024.04.16"]
[Round "7"]
[White "Nf3c5"]
[Black "aanshnerurkar"]
[Result "1-0"]
[WhiteElo "2618"]
[BlackElo "2421"]
[TimeControl "180+1"]
[EndTime "9:21:55 PDT"]
[Termination "Nf3c5 won on time"]

1. e4 {[%clk 0:03:00.9]} 1... c5 {[%clk 0:02:58.6]} 2. Nc3 {[%clk 0:02:59.5]}
2... g6 {[%clk 0:02:58.1]} 3. d4 {[%clk 0:02:58.4]} 3... cxd4 {[%clk 0:02:58.1]}
4. Qxd4 {[%clk 0:02:59.2]} 4... Nf6 {[%clk 0:02:58.1]} 5. Be3 {[%clk 0:02:58.1]}
5... Nc6 {[%clk 0:02:57.6]} 6. Qd2 {[%clk 0:02:58.6]} 6... Bg7 {[%clk
0:02:55.6]} 7. f3 {[%clk 0:02:59.2]} 7... d6 {[%clk 0:02:54.8]} 8. Nge2 {[%clk
0:02:57.8]} 8... O-O {[%clk 0:02:53.9]} 9. h4 {[%clk 0:02:57.9]} 9... Ne5 {[%clk
0:02:53.9]} 10. Nf4 {[%clk 0:02:54.9]} 10... Be6 {[%clk 0:02:46.1]} 11. h5
{[%clk 0:02:51.2]} 11... Bc4 {[%clk 0:02:34.7]} 12. hxg6 {[%clk 0:02:41.3]}
12... fxg6 {[%clk 0:02:28.9]} 13. Nd3 {[%clk 0:02:41.4]} 13... Nxd3+ {[%clk
0:02:15.4]} 14. Bxd3 {[%clk 0:02:38.5]} 14... Bxd3 {[%clk 0:02:08]} 15. Qxd3
{[%clk 0:02:28.3]} 15... Qa5 {[%clk 0:02:04.6]} 16. O-O-O {[%clk 0:02:18.6]}
16... Rac8 {[%clk 0:02:04.1]} 17. Bd4 {[%clk 0:02:18.4]} 17... a6 {[%clk
0:01:39.4]} 18. Kb1 {[%clk 0:02:15.9]} 18... Qb4 {[%clk 0:01:34.3]} 19. g4
{[%clk 0:01:24.9]} 19... Qc4 {[%clk 0:01:32.3]} 20. Qd2 {[%clk 0:01:19]} 20...
b5 {[%clk 0:01:15.4]} 21. g5 {[%clk 0:01:16.3]} 21... b4 {[%clk 0:01:00.5]} 22.
gxf6 {[%clk 0:01:12.9]} 22... bxc3 {[%clk 0:00:59.9]} 23. Qh2 {[%clk 0:01:12.9]}
23... exf6 {[%clk 0:00:51]} 24. Qxh7+ {[%clk 0:01:09.7]} 24... Kf7 {[%clk
0:00:50.8]} 25. Rh6 {[%clk 0:01:02.1]} 25... cxb2 {[%clk 0:00:33.5]} 26. Qxg6+
{[%clk 0:00:58.2]} 26... Kg8 {[%clk 0:00:29.5]} 27. Qh7+ {[%clk 0:00:47.8]}
27... Kf7 {[%clk 0:00:28.8]} 28. Rxf6+ {[%clk 0:00:46.4]} 28... Ke8 {[%clk
0:00:24.4]} 29. Qg6+ {[%clk 0:00:41.9]} 29... Rf7 {[%clk 0:00:19.6]} 30. Re6+
{[%clk 0:00:33.5]} 30... Kf8 {[%clk 0:00:17.8]} 31. Bxg7+ {[%clk 0:00:17]} 31...
Rxg7 {[%clk 0:00:17.8]} 32. Qf6+ {[%clk 0:00:16.9]} 32... Kg8 {[%clk 0:00:17.5]}
33. c3 {[%clk 0:00:06]} 33... Qxc3 {[%clk 0:00:07.8]} 34. Re8+ {[%clk
0:00:05.5]} 34... Rxe8 {[%clk 0:00:05.9]} 35. Qxc3 {[%clk 0:00:05.5]} 35... Rf8
{[%clk 0:00:04.6]} 36. Kxb2 {[%clk 0:00:04]} 36... Rg2+ {[%clk 0:00:04]} 37. Ka1
{[%clk 0:00:04.3]} 37... Rg3 {[%clk 0:00:03.7]} 38. Qc4+ {[%clk 0:00:02.1]}
38... Kg7 {[%clk 0:00:02.9]} 39. Qd4+ {[%clk 0:00:03]} 39... Kg8 {[%clk
0:00:02.3]} 40. Qxd6 {[%clk 0:00:03.9]} 40... Rgxf3 {[%clk 0:00:02.1]} 41. Rg1+
{[%clk 0:00:03.3]} 41... Kf7 {[%clk 0:00:01.4]} 42. Qd5+ {[%clk 0:00:03.3]}
42... Ke7 {[%clk 0:00:01.2]} 43. Rg7+ {[%clk 0:00:02.8]} 43... R8f7 {[%clk
0:00:01.4]} 44. Rxf7+ {[%clk 0:00:03.3]} 44... Rxf7 {[%clk 0:00:01.5]} 45. Qb7+
{[%clk 0:00:04]} 45... Kf6 {[%clk 0:00:01.4]} 46. Qxa6+ {[%clk 0:00:04.9]} 46...
Ke5 {[%clk 0:00:01.6]} 47. Qc4 {[%clk 0:00:05.6]} 1-0

[Event "Early-Titled-Tuesday-Blitz-April-16-2024"]
[Site "Chess.com"]
[Date "2024.04.16"]
[Round "7"]
[White "FaustinoOro"]
[Black "Leo_C"]
[Result "1-0"]
[WhiteElo "2939"]
[BlackElo "2661"]
[TimeControl "180+1"]
[EndTime "9:22:00 PDT"]
[Termination "FaustinoOro won by resignation"]

1. e4 {[%clk 0:03:00.9]} 1... e5 {[%clk 0:02:57.8]} 2. Nf3 {[%clk 0:03:01]} 2...
Nc6 {[%clk 0:02:58.3]} 3. Bb5 {[%clk 0:03:01.2]} 3... Nge7 {[%clk 0:02:58]} 4.
O-O {[%clk 0:02:59.9]} 4... Ng6 {[%clk 0:02:55.8]} 5. c3 {[%clk 0:02:59.7]} 5...
d5 {[%clk 0:02:48.8]} 6. exd5 {[%clk 0:02:52.8]} 6... Qxd5 {[%clk 0:02:49.7]} 7.
Ba4 {[%clk 0:02:39.7]} 7... Bg4 {[%clk 0:02:42.2]} 8. Bb3 {[%clk 0:02:33.2]}
8... Qd3 {[%clk 0:02:32.9]} 9. Bxf7+ {[%clk 0:02:20.3]} 9... Kd8 {[%clk
0:02:12]} 10. h3 {[%clk 0:01:53.4]} 10... Bh5 {[%clk 0:01:58.2]} 11. g4 {[%clk
0:01:46.7]} 11... Bc5 {[%clk 0:01:16]} 12. gxh5 {[%clk 0:01:18.5]} 12... Nf4
{[%clk 0:01:14.6]} 13. Kh2 {[%clk 0:01:17.4]} 13... Qf5 {[%clk 0:01:06.7]} 14.
Ng1 {[%clk 0:01:10.1]} 14... Qxf7 {[%clk 0:01:04.3]} 15. Qg4 {[%clk 0:01:03.8]}
15... Nd3 {[%clk 0:00:58.5]} 16. Qf3 {[%clk 0:00:54]} 16... Qxf3 {[%clk
0:00:50.5]} 17. Nxf3 {[%clk 0:00:54.9]} 17... Rf8 {[%clk 0:00:50.9]} 18. Ng5
{[%clk 0:00:54]} 18... Kd7 {[%clk 0:00:48.5]} 19. Ne4 {[%clk 0:00:51.3]} 19...
Be7 {[%clk 0:00:47.8]} 20. Na3 {[%clk 0:00:40.7]} 20... Rf4 {[%clk 0:00:39]} 21.
f3 {[%clk 0:00:40.3]} 21... Bxa3 {[%clk 0:00:37.1]} 22. bxa3 {[%clk 0:00:40.2]}
22... Raf8 {[%clk 0:00:34]} 23. Kg2 {[%clk 0:00:40.5]} 23... Ne7 {[%clk
0:00:27.3]} 24. a4 {[%clk 0:00:34.3]} 24... Nf5 {[%clk 0:00:27.6]} 25. Ba3
{[%clk 0:00:31.3]} 25... Rf7 {[%clk 0:00:20]} 26. Ng5 {[%clk 0:00:24.3]} 26...
Rf6 {[%clk 0:00:20.4]} 27. Nxh7 {[%clk 0:00:23.3]} 27... Rh6 {[%clk 0:00:18.3]}
28. Nf8+ {[%clk 0:00:23.5]} 28... Kc6 {[%clk 0:00:15.2]} 29. Ng6 {[%clk
0:00:19.4]} 29... Rxa4 {[%clk 0:00:15.3]} 30. Bf8 {[%clk 0:00:16.4]} 30... Rxh5
{[%clk 0:00:15.3]} 31. Kh2 {[%clk 0:00:14.9]} 31... Rg5 {[%clk 0:00:09.9]} 32.
Rg1 {[%clk 0:00:15]} 32... Rxg1 {[%clk 0:00:08.2]} 33. Kxg1 {[%clk 0:00:15.9]}
33... Kd7 {[%clk 0:00:05.1]} 34. Nh8 {[%clk 0:00:06.5]} 34... Ke6 {[%clk
0:00:04.7]} 35. Kh2 {[%clk 0:00:05.8]} 35... Rh4 {[%clk 0:00:04.1]} 36. Ng6
{[%clk 0:00:06.2]} 36... Rh6 {[%clk 0:00:03.1]} 37. Rg1 {[%clk 0:00:04.4]} 37...
Kf7 {[%clk 0:00:02.9]} 38. Bxg7 {[%clk 0:00:04.4]} 38... Nxg7 {[%clk 0:00:02.3]}
39. Ne7 {[%clk 0:00:05.1]} 39... Kxe7 {[%clk 0:00:02.1]} 40. Rxg7+ {[%clk
0:00:05.8]} 40... Kd6 {[%clk 0:00:02.7]} 41. Kg3 {[%clk 0:00:06.5]} 41... Nf4
{[%clk 0:00:02.8]} 42. h4 {[%clk 0:00:07.1]} 42... Rg6+ {[%clk 0:00:02.7]} 43.
Rxg6+ {[%clk 0:00:07.4]} 43... Nxg6 {[%clk 0:00:03.6]} 44. Kg4 {[%clk
0:00:08.2]} 44... Ke6 {[%clk 0:00:03.6]} 45. Kg5 {[%clk 0:00:08.8]} 45... Kf7
{[%clk 0:00:03.7]} 46. h5 {[%clk 0:00:09.4]} 46... Nf4 {[%clk 0:00:03.3]} 47. h6
{[%clk 0:00:10.1]} 47... Ne6+ {[%clk 0:00:02.8]} 48. Kf5 {[%clk 0:00:10.6]}
48... Nc5 {[%clk 0:00:02.7]} 49. Kxe5 {[%clk 0:00:10.6]} 49... c6 {[%clk
0:00:03.1]} 50. Kd6 {[%clk 0:00:11]} 50... Nd3 {[%clk 0:00:03.1]} 51. Kc7 {[%clk
0:00:11.3]} 51... b5 {[%clk 0:00:02.9]} 52. Kxc6 {[%clk 0:00:11.6]} 52... Nc1
{[%clk 0:00:02.9]} 53. a3 {[%clk 0:00:10.6]} 53... a6 {[%clk 0:00:03.4]} 54. Kb6
{[%clk 0:00:10.8]} 54... Nb3 {[%clk 0:00:04]} 55. d4 {[%clk 0:00:10.9]} 55...
Nd2 {[%clk 0:00:03.3]} 56. Kxa6 {[%clk 0:00:09.1]} 56... Nc4 {[%clk 0:00:03.9]}
57. Kxb5 {[%clk 0:00:08.6]} 57... Nxa3+ {[%clk 0:00:04.5]} 58. Kc6 {[%clk
0:00:09.2]} 58... Kg6 {[%clk 0:00:03.9]} 59. d5 {[%clk 0:00:09.4]} 59... Nc4
{[%clk 0:00:04.1]} 60. d6 {[%clk 0:00:10]} 60... Ne5+ {[%clk 0:00:04.6]} 61. Kc7
{[%clk 0:00:10.3]} 1-0

[Event "Early-Titled-Tuesday-Blitz-April-16-2024"]
[Site "Chess.com"]
[Date "2024.04.16"]
[Round "7"]
[White "Acva-Alenok"]
[Black "Bulatova_Kamaliya"]
[Result "1-0"]
[WhiteElo "2323"]
[BlackElo "2401"]
[TimeControl "180+1"]
[EndTime "9:22:01 PDT"]
[Termination "Acva-Alenok won on time"]

1. d4 {[%clk 0:03:00.9]} 1... Nf6 {[%clk 0:02:59.2]} 2. c4 {[%clk 0:03:01.1]}
2... e6 {[%clk 0:02:58.9]} 3. Nf3 {[%clk 0:03:01.3]} 3... c5 {[%clk 0:02:58.5]}
4. d5 {[%clk 0:03:01.3]} 4... d6 {[%clk 0:02:57.4]} 5. dxe6 {[%clk 0:02:57.3]}
5... Bxe6 {[%clk 0:02:56.2]} 6. b3 {[%clk 0:02:15.6]} 6... g6 {[%clk 0:02:41.3]}
7. Bb2 {[%clk 0:02:14]} 7... Bg7 {[%clk 0:02:40.7]} 8. e4 {[%clk 0:02:01]} 8...
O-O {[%clk 0:02:36.8]} 9. Nbd2 {[%clk 0:02:00.3]} 9... Nc6 {[%clk 0:02:31.3]}
10. Be2 {[%clk 0:01:47.2]} 10... Re8 {[%clk 0:02:24.1]} 11. O-O {[%clk
0:01:43.4]} 11... Bg4 {[%clk 0:02:23.4]} 12. h3 {[%clk 0:01:23.2]} 12... Bxf3
{[%clk 0:02:09.3]} 13. Bxf3 {[%clk 0:01:23.9]} 13... Nxe4 {[%clk 0:02:01]} 14.
Bxg7 {[%clk 0:00:40.2]} 14... Nxd2 {[%clk 0:02:00.1]} 15. Bxc6 {[%clk
0:00:38.3]} 15... bxc6 {[%clk 0:01:46.8]} 16. Qxd2 {[%clk 0:00:26.3]} 16... Kxg7
{[%clk 0:01:46.6]} 17. Rad1 {[%clk 0:00:20.1]} 17... Re6 {[%clk 0:01:46.3]} 18.
f4 {[%clk 0:00:18.8]} 18... Rf6 {[%clk 0:01:09.1]} 19. Qc3 {[%clk 0:00:14.9]}
19... Qd7 {[%clk 0:00:59.2]} 20. f5 {[%clk 0:00:12.6]} 20... g5 {[%clk
0:00:59.2]} 21. Rd3 {[%clk 0:00:09.9]} 21... Re8 {[%clk 0:00:47.9]} 22. Rg3
{[%clk 0:00:10.3]} 22... h6 {[%clk 0:00:44.8]} 23. h4 {[%clk 0:00:10.8]} 23...
Re5 {[%clk 0:00:43.7]} 24. hxg5 {[%clk 0:00:10.4]} 24... Rfxf5 {[%clk
0:00:41.7]} 25. gxh6+ {[%clk 0:00:07.3]} 25... Kh7 {[%clk 0:00:35.5]} 26. Qd3
{[%clk 0:00:04.4]} 26... Kxh6 {[%clk 0:00:28]} 27. Rh3+ {[%clk 0:00:04.7]} 27...
Kg7 {[%clk 0:00:27.1]} 28. Qg3+ {[%clk 0:00:03.8]} 28... Rg5 {[%clk 0:00:25.6]}
29. Qh4 {[%clk 0:00:04.1]} 29... Kf8 {[%clk 0:00:16.4]} 30. Qh8+ {[%clk
0:00:03.3]} 30... Ke7 {[%clk 0:00:16.4]} 31. Rxf7+ {[%clk 0:00:03.6]} 31... Kxf7
{[%clk 0:00:15.1]} 32. Rh7+ {[%clk 0:00:04]} 32... Ke6 {[%clk 0:00:14.9]} 33.
Rxd7 {[%clk 0:00:03.2]} 33... Kxd7 {[%clk 0:00:15]} 34. Qh7+ {[%clk 0:00:03.8]}
34... Kc8 {[%clk 0:00:13.4]} 35. Qh8+ {[%clk 0:00:03.4]} 35... Kb7 {[%clk
0:00:12.9]} 36. Qh7+ {[%clk 0:00:03.4]} 36... Kb6 {[%clk 0:00:13.1]} 37. Qd7
{[%clk 0:00:03.5]} 37... Re1+ {[%clk 0:00:03.6]} 38. Kf2 {[%clk 0:00:03.3]}
38... Ree5 {[%clk 0:00:03.1]} 39. Qxd6 {[%clk 0:00:02.8]} 39... Ref5+ {[%clk
0:00:03.3]} 40. Kg1 {[%clk 0:00:03.2]} 40... Rg4 {[%clk 0:00:01.9]} 41. Qd8+
{[%clk 0:00:02.5]} 41... Kb7 {[%clk 0:00:01.3]} 42. Qd7+ {[%clk 0:00:02.7]}
42... Kb6 {[%clk 0:00:01.8]} 43. Qxf5 {[%clk 0:00:03.4]} 43... Ka5 {[%clk
0:00:01.8]} 44. Qc8 {[%clk 0:00:03.9]} 44... Kb6 {[%clk 0:00:01.8]} 45. Qb8+
{[%clk 0:00:03.6]} 45... Ka6 {[%clk 0:00:01.8]} 46. Qc8+ {[%clk 0:00:03.9]}
46... Kb6 {[%clk 0:00:01.9]} 47. Qxg4 {[%clk 0:00:04.7]} 1-0

[Event "Early-Titled-Tuesday-Blitz-April-16-2024"]
[Site "Chess.com"]
[Date "2024.04.16"]
[Round "7"]
[White "MIss_MIaMI"]
[Black "UnTucopalaTimba"]
[Result "1-0"]
[WhiteElo "2363"]
[BlackElo "2025"]
[TimeControl "180+1"]
[EndTime "9:22:03 PDT"]
[Termination "MIss_MIaMI won on time"]

1. e4 {[%clk 0:03:00.9]} 1... c6 {[%clk 0:02:59.5]} 2. d4 {[%clk 0:03:00.7]}
2... d5 {[%clk 0:02:59.2]} 3. exd5 {[%clk 0:03:01.6]} 3... cxd5 {[%clk
0:02:59.4]} 4. Bb5+ {[%clk 0:03:02.1]} 4... Nc6 {[%clk 0:02:58.9]} 5. c4 {[%clk
0:03:01.5]} 5... Nf6 {[%clk 0:02:53.4]} 6. Nc3 {[%clk 0:03:00.7]} 6... a6 {[%clk
0:02:50.7]} 7. Ba4 {[%clk 0:02:56.4]} 7... Bf5 {[%clk 0:02:33]} 8. Nf3 {[%clk
0:02:31]} 8... e6 {[%clk 0:02:27.7]} 9. Bxc6+ {[%clk 0:02:30.4]} 9... bxc6
{[%clk 0:02:27.4]} 10. Qa4 {[%clk 0:02:31.2]} 10... dxc4 {[%clk 0:02:14.2]} 11.
Qxc6+ {[%clk 0:02:29.9]} 11... Nd7 {[%clk 0:02:13]} 12. Qxc4 {[%clk 0:02:27.8]}
12... Be7 {[%clk 0:02:07.4]} 13. O-O {[%clk 0:02:26.3]} 13... O-O {[%clk
0:02:06.7]} 14. Bf4 {[%clk 0:02:23.7]} 14... Qc8 {[%clk 0:01:54.5]} 15. Qb3
{[%clk 0:02:16.8]} 15... Nf6 {[%clk 0:01:50.6]} 16. Rac1 {[%clk 0:02:15.4]}
16... Qd8 {[%clk 0:01:46.9]} 17. Rfd1 {[%clk 0:02:12]} 17... Nd5 {[%clk
0:01:46.5]} 18. Nxd5 {[%clk 0:02:05.3]} 18... Qxd5 {[%clk 0:01:40.6]} 19. Qxd5
{[%clk 0:02:04.7]} 19... exd5 {[%clk 0:01:40.4]} 20. Rc7 {[%clk 0:01:46]} 20...
Bf6 {[%clk 0:01:35.9]} 21. Be5 {[%clk 0:01:29.5]} 21... Bd8 {[%clk 0:01:27.3]}
22. Rc5 {[%clk 0:01:27.5]} 22... Be6 {[%clk 0:01:24.9]} 23. b3 {[%clk
0:01:14.5]} 23... Bb6 {[%clk 0:01:15.6]} 24. Rc6 {[%clk 0:01:13]} 24... Bd8
{[%clk 0:01:13.7]} 25. h3 {[%clk 0:01:06.8]} 25... h6 {[%clk 0:01:10.2]} 26.
Rdc1 {[%clk 0:01:06.9]} 26... Be7 {[%clk 0:01:05]} 27. Rc7 {[%clk 0:01:05.6]}
27... Bb4 {[%clk 0:01:02]} 28. Rb7 {[%clk 0:01:03.4]} 28... Ba5 {[%clk
0:00:55.9]} 29. Rc5 {[%clk 0:01:00.3]} 29... Bd8 {[%clk 0:00:45.8]} 30. g4
{[%clk 0:00:47.8]} 30... Re8 {[%clk 0:00:42.8]} 31. Kg2 {[%clk 0:00:46.4]} 31...
Be7 {[%clk 0:00:39.1]} 32. Rcc7 {[%clk 0:00:44.9]} 32... Bd8 {[%clk 0:00:33]}
33. Rc6 {[%clk 0:00:43.3]} 33... a5 {[%clk 0:00:31.7]} 34. Ne1 {[%clk
0:00:34.4]} 34... Be7 {[%clk 0:00:27.4]} 35. Nd3 {[%clk 0:00:33.1]} 35... a4
{[%clk 0:00:23.9]} 36. b4 {[%clk 0:00:32.5]} 36... Bc8 {[%clk 0:00:18.5]} 37.
Rbc7 {[%clk 0:00:24.4]} 37... Ba6 {[%clk 0:00:17.7]} 38. Nc5 {[%clk 0:00:21.7]}
38... Bc4 {[%clk 0:00:17.3]} 39. a3 {[%clk 0:00:21.2]} 39... Bxc5 {[%clk
0:00:16.7]} 40. bxc5 {[%clk 0:00:21.5]} 40... f6 {[%clk 0:00:13.6]} 41. Bf4
{[%clk 0:00:18]} 41... g5 {[%clk 0:00:12.9]} 42. Be3 {[%clk 0:00:17.7]} 42...
Ra6 {[%clk 0:00:12.1]} 43. Rxa6 {[%clk 0:00:17.6]} 43... Bxa6 {[%clk 0:00:12.1]}
44. Rc6 {[%clk 0:00:17.8]} 44... Bc4 {[%clk 0:00:10.8]} 45. Rxf6 {[%clk
0:00:18.3]} 45... Kg7 {[%clk 0:00:10.8]} 46. Rb6 {[%clk 0:00:16.2]} 46... Rc8
{[%clk 0:00:10.4]} 47. Kg3 {[%clk 0:00:14.6]} 47... Rc7 {[%clk 0:00:09.6]} 48.
f4 {[%clk 0:00:14.8]} 48... Re7 {[%clk 0:00:08.7]} 49. Kf3 {[%clk 0:00:13.4]}
49... Bd3 {[%clk 0:00:07.8]} 50. fxg5 {[%clk 0:00:13.3]} 50... hxg5 {[%clk
0:00:07.7]} 51. Bxg5 {[%clk 0:00:13.3]} 51... Rf7+ {[%clk 0:00:06.5]} 52. Kg3
{[%clk 0:00:13.4]} 52... Be4 {[%clk 0:00:06.1]} 53. Bf4 {[%clk 0:00:14]} 53...
Rd7 {[%clk 0:00:05.4]} 54. Be5+ {[%clk 0:00:14.3]} 54... Kf7 {[%clk 0:00:04.9]}
55. c6 {[%clk 0:00:15]} 55... Rd8 {[%clk 0:00:03.2]} 56. c7 {[%clk 0:00:15.4]}
56... Rc8 {[%clk 0:00:02.9]} 57. Rb8 {[%clk 0:00:15.9]} 1-0

[Event "Early-Titled-Tuesday-Blitz-April-16-2024"]
[Site "Chess.com"]
[Date "2024.04.16"]
[Round "7"]
[White "gau248"]
[Black "M1711"]
[Result "0-1"]
[WhiteElo "2573"]
[BlackElo "2699"]
[TimeControl "180+1"]
[EndTime "9:22:04 PDT"]
[Termination "M1711 won on time"]

1. e4 {[%clk 0:03:00.9]} 1... e6 {[%clk 0:02:59.7]} 2. d4 {[%clk 0:02:58]} 2...
d5 {[%clk 0:02:59.5]} 3. Nd2 {[%clk 0:02:55.3]} 3... Be7 {[%clk 0:02:56.6]} 4.
Ngf3 {[%clk 0:02:53.8]} 4... Nf6 {[%clk 0:02:56.5]} 5. e5 {[%clk 0:02:45.8]}
5... Nfd7 {[%clk 0:02:56.4]} 6. c4 {[%clk 0:02:44.2]} 6... dxc4 {[%clk
0:02:51.6]} 7. Nxc4 {[%clk 0:02:43.5]} 7... O-O {[%clk 0:02:50.5]} 8. Bd3 {[%clk
0:02:43.1]} 8... c5 {[%clk 0:02:50.1]} 9. Be3 {[%clk 0:02:42.6]} 9... Nc6 {[%clk
0:02:44.9]} 10. O-O {[%clk 0:02:35.8]} 10... cxd4 {[%clk 0:02:43.4]} 11. Bxd4
{[%clk 0:02:36.7]} 11... Nxd4 {[%clk 0:02:41.7]} 12. Nxd4 {[%clk 0:02:37.6]}
12... Nc5 {[%clk 0:02:38.3]} 13. Bc2 {[%clk 0:02:33.8]} 13... Qd5 {[%clk
0:02:35.8]} 14. b3 {[%clk 0:02:25.5]} 14... b6 {[%clk 0:02:16.5]} 15. Nb5 {[%clk
0:02:20.2]} 15... Bb7 {[%clk 0:02:04.4]} 16. Qg4 {[%clk 0:02:15.5]} 16... Qc6
{[%clk 0:01:01.2]} 17. Nbd6 {[%clk 0:02:08.3]} 17... Ba6 {[%clk 0:00:44.8]} 18.
Rad1 {[%clk 0:01:59.1]} 18... Rad8 {[%clk 0:00:43.6]} 19. Rd4 {[%clk 0:01:29.1]}
19... g6 {[%clk 0:00:31.7]} 20. Rfd1 {[%clk 0:01:25.2]} 20... Bxc4 {[%clk
0:00:28.4]} 21. bxc4 {[%clk 0:01:21.9]} 21... Nd7 {[%clk 0:00:24.2]} 22. Be4
{[%clk 0:01:12.2]} 22... Nxe5 {[%clk 0:00:10.7]} 23. Bxc6 {[%clk 0:00:07.7]}
23... Nxg4 {[%clk 0:00:10.7]} 24. Rxg4 {[%clk 0:00:07.9]} 24... Rxd6 {[%clk
0:00:08.9]} 25. Rxd6 {[%clk 0:00:07.6]} 25... Bxd6 {[%clk 0:00:09.8]} 26. Rd4
{[%clk 0:00:07.9]} 26... Be5 {[%clk 0:00:07.8]} 27. Rd7 {[%clk 0:00:07.4]} 27...
a6 {[%clk 0:00:07.7]} 28. Bb7 {[%clk 0:00:05.5]} 28... a5 {[%clk 0:00:05.1]} 29.
g3 {[%clk 0:00:05.7]} 29... Kg7 {[%clk 0:00:05.1]} 30. Kg2 {[%clk 0:00:06.2]}
30... Rb8 {[%clk 0:00:04.7]} 31. Ba6 {[%clk 0:00:06.1]} 31... Bf6 {[%clk
0:00:03.5]} 32. Bb5 {[%clk 0:00:02.4]} 32... Rc8 {[%clk 0:00:03.2]} 33. Ba6
{[%clk 0:00:01.7]} 33... Rc5 {[%clk 0:00:03.1]} 34. Bb5 {[%clk 0:00:02.4]} 34...
Rf5 {[%clk 0:00:02.4]} 35. g4 {[%clk 0:00:01.9]} 35... Rf4 {[%clk 0:00:02.6]}
36. h3 {[%clk 0:00:02.8]} 36... Bd4 {[%clk 0:00:02.9]} 37. Rd8 {[%clk
0:00:02.4]} 37... Rxf2+ {[%clk 0:00:02.8]} 38. Kg3 {[%clk 0:00:03.3]} 38... Rd2
{[%clk 0:00:02.7]} 39. Kf3 {[%clk 0:00:03.3]} 39... Bc3 {[%clk 0:00:02.8]} 40.
Rxd2 {[%clk 0:00:02.7]} 40... Bxd2 {[%clk 0:00:03.7]} 41. Bc6 {[%clk 0:00:03.2]}
41... Bc3 {[%clk 0:00:03.7]} 42. Kg2 {[%clk 0:00:04.1]} 42... f5 {[%clk
0:00:03.9]} 43. Kf3 {[%clk 0:00:04.4]} 43... Kf6 {[%clk 0:00:04.4]} 44. Bd7
{[%clk 0:00:03.9]} 44... e5 {[%clk 0:00:04.4]} 45. Bc8 {[%clk 0:00:04.8]} 45...
e4+ {[%clk 0:00:04.8]} 46. Ke3 {[%clk 0:00:04.2]} 46... Ke5 {[%clk 0:00:04.7]}
47. gxf5 {[%clk 0:00:04.1]} 47... gxf5 {[%clk 0:00:05.6]} 48. Bb7 {[%clk
0:00:04]} 48... f4+ {[%clk 0:00:05.9]} 49. Ke2 {[%clk 0:00:03.8]} 49... f3+
{[%clk 0:00:06.2]} 50. Kf2 {[%clk 0:00:04]} 50... Kf4 {[%clk 0:00:06.3]} 51. Bd5
{[%clk 0:00:02.9]} 51... e3+ {[%clk 0:00:06.5]} 52. Kg1 {[%clk 0:00:03.1]} 52...
e2 {[%clk 0:00:06.5]} 0-1